Workbook

Sheet Sheet1
B1: 4月15日 社会見学 午前中の予定
A3: ① | B3: 午前 | C3: 8 | D3: 時 | E3: 15 | F3: 分 | G3: 学校に登校します
A5: ② | B5: 午前 | C5: 8 | D5: 時 | E5: 30 | F5: 分 | G5: 教室で朝の会
A7: ③ | B7: 午前 | C7: 8 | D7: 時 | E7: 45 | F7: 分 | G7: 昇降口に移動 トイレに行きます。
A9: ④ | B9: 午前 | C9: 9 | D9: 時 | E9: 0 | F9: 分 | G9: バスに乗ります。出発
A11: ⑤ | B11: 午前 | C11: 9 | D11: 時 | E11: 40 | F11: 分 | G11: AAAスタジアム 見学
A13: ⑥ | B13: 午後 | C13: 12 | D13: 時 | E13: 30 | F13: 分 | G13: お弁当 桜公園で
D19: ①
G20: 分針
D21: =D32-計算シート!J2 -> 479 | G21: 時計の針先ｘ座標
D22: =D33+計算シート!K2 -> 91 | G22: 時計の針先y座標
D23: =D32 -> 448 | G23: 時計の中心ｘ座標
D24: =D33 -> 91 | G24: 時計の中心ｙ座標
G26: 時針
D27: =D32-計算シート!J3 -> 426.7507708 | G27: 時計の針先ｘ座標
D28: =D33+計算シート!K3 -> 99.80171894 | G28: 時計の針先y座標
D29: =D32 -> 448 | G29: 時計の中心ｘ座標
D30: =D33 -> 91 | G30: 時計の中心ｙ座標
D32: 448 | G32: 時計の中心座標ｘ
D33: 91 | G33: 時計の中心座標ｙ
D35: ②
G36: 分針
D37: =D48-計算シート!J4 -> 448 | G37: 時計の針先ｘ座標
D38: =D49+計算シート!K4 -> 237 | G38: 時計の針先y座標
D39: =D48 -> 448 | G39: 時計の中心ｘ座標
D40: =D49 -> 206 | G40: 時計の中心ｙ座標
G42: 時針
D43: =D48-計算シート!J5 -> 425.783706 | G43: 時計の針先ｘ座標
D44: =D49+計算シート!K5 -> 211.952838 | G44: 時計の針先y座標
D45: =D48 -> 448 | G45: 時計の中心ｘ座標
D46: =D49 -> 206 | G46: 時計の中心ｙ座標
D48: 448 | G48: 時計の中心座標ｘ
D49: 206 | G49: 時計の中心座標ｙ
D51: ③
G52: 分針
D53: =D64-計算シート!J6 -> 417 | G53: 時計の針先ｘ座標
D54: =D65+計算シート!K6 -> 323 | G54: 時計の針先y座標
D55: =D64 -> 448 | G55: 時計の中心ｘ座標
D56: =D65 -> 323 | G56: 時計の中心ｙ座標
G58: 時針
D59: =D64-計算シート!J7 -> 425.1967682 | G59: 時計の針先ｘ座標
D60: =D65+計算シート!K7 -> 326.0021024 | G60: 時計の針先y座標
D61: =D64 -> 448 | G61: 時計の中心ｘ座標
D62: =D65 -> 323 | G62: 時計の中心ｙ座標
D64: 448 | G64: 時計の中心座標ｘ
D65: 323 | G65: 時計の中心座標ｙ
D67: ④
G68: 分針
D69: =D80-計算シート!J8 -> 448 | G69: 時計の針先ｘ座標
D70: =D81+計算シート!K8 -> 409 | G70: 時計の針先y座標
D71: =D80 -> 448 | G71: 時計の中心ｘ座標
D72: =D81 -> 440 | G72: 時計の中心ｙ座標
G74: 時針
D75: =D80-計算シート!J9 -> 425 | G75: 時計の針先ｘ座標
D76: =D81+計算シート!K9 -> 440 | G76: 時計の針先y座標
D77: =D80 -> 448 | G77: 時計の中心ｘ座標
D78: =D81 -> 440 | G78: 時計の中心ｙ座標
D80: 448 | G80: 時計の中心座標ｘ
D81: 440 | G81: 時計の中心座標ｙ
D83: ⑤
G84: 分針
D85: =D96-計算シート!J10 -> 421.1532125 | G85: 時計の針先ｘ座標
D86: =D97+計算シート!K10 -> 571.5 | G86: 時計の針先y座標
D87: =D96 -> 448 | G87: 時計の中心ｘ座標
D88: =D97 -> 556 | G88: 時計の中心ｙ座標
G90: 時針
D91: =D96-計算シート!J11 -> 426.3870697 | G91: 時計の針先ｘ座標
D92: =D97+計算シート!K11 -> 548.1335367 | G92: 時計の針先y座標
D93: =D96 -> 448 | G93: 時計の中心ｘ座標
D94: =D97 -> 556 | G94: 時計の中心ｙ座標
D96: 448 | G96: 時計の中心座標ｘ
D97: 556 | G97: 時計の中心座標ｙ
D99: ⑥
G100: 分針
D101: =D112-計算シート!J12 -> 448 | G101: 時計の針先ｘ座標
D102: =D113+計算シート!K12 -> 704 | G102: 時計の針先y座標
D103: =D112 -> 448 | G103: 時計の中心ｘ座標
D104: =D113 -> 673 | G104: 時計の中心ｙ座標
G106: 時針
D107: =D112-計算シート!J13 -> 453.952838 | G107: 時計の針先ｘ座標
D108: =D113+計算シート!K13 -> 650.783706 | G108: 時計の針先y座標
D109: =D112 -> 448 | G109: 時計の中心ｘ座標
D110: =D113 -> 673 | G110: 時計の中心ｙ座標
D112: 448 | G112: 時計の中心座標ｘ
D113: 673 | G113: 時計の中心座標ｙ

Sheet 計算シート
C1: 針の長さ | D1: 値 | E1: 時針は分でも動く | F1: 角度に変換 | G1: ラジアンに変換 | H1: X方向 | I1: Y方向 | J1: X座標 | K1: Y座標
A2: ① | B2: 分針 | C2: 31 | D2: =Sheet1!E3 -> 15 | F2: =(D2*-1+45)*6 -> 180 | G2: =F2*PI()/180 -> 3.141592654 | H2: =COS(G2) -> -1 | I2: =SIN(G2) -> 1.225148455e-16 | J2: =H2*C2 -> -31 | K2: =I2*C2 -> 3.79796021e-15
B3: 時針 | C3: 23 | D3: =Sheet1!C3 -> 8 | E3: =D3+D2/60 -> 8.25 | F3: =(E3*-1+9)*30 -> 22.5 | G3: 0.3926990817 | H3: 0.9238795325 | I3: 0.3826834324 | J3: 21.24922925 | K3: 8.801718944
A4: ② | B4: 分針 | C4: 31 | D4: =Sheet1!E5 -> 30 | F4: =(D4*-1+45)*6 -> 90 | G4: 1.570796327 | H4: 6.125742275e-17 | I4: 1 | J4: 1.898980105e-15 | K4: 31
B5: 時針 | C5: 23 | D5: =Sheet1!C5 -> 8 | E5: =D5+D4/60 -> 8.5 | F5: =(E5*-1+9)*30 -> 15 | G5: 0.2617993878 | H5: 0.9659258263 | I5: 0.2588190451 | J5: 22.216294 | K5: 5.952838037
A6: ③ | B6: 分針 | C6: 31 | D6: =Sheet1!E7 -> 45 | F6: =(D6*-1+45)*6 -> 0 | G6: 0 | H6: 1 | I6: 0 | J6: 31 | K6: 0
B7: 時針 | C7: 23 | D7: =Sheet1!C7 -> 8 | E7: =D7+D6/60 -> 8.75 | F7: =(E7*-1+9)*30 -> 7.5 | G7: 0.1308996939 | H7: 0.9914448614 | I7: 0.1305261922 | J7: 22.80323181 | K7: 3.002102421
A8: ④ | B8: 分針 | C8: 31 | D8: =Sheet1!E9 -> 0 | F8: =(D8*-1+45)*6 -> 270 | G8: 4.71238898 | H8: -1.837722682e-16 | I8: -1 | J8: -5.696940315e-15 | K8: -31
B9: 時針 | C9: 23 | D9: =Sheet1!C9 -> 9 | E9: =D9+D8/60 -> 9 | F9: =(E9*-1+9)*30 -> 0 | G9: 0 | H9: 1 | I9: 0 | J9: 23 | K9: 0
A10: ⑤ | B10: 分針 | C10: 31 | D10: =Sheet1!E11 -> 40 | F10: =(D10*-1+45)*6 -> 30 | G10: 0.5235987756 | H10: 0.8660254038 | I10: 0.5 | J10: 26.84678752 | K10: 15.5
B11: 時針 | C11: 23 | D11: =Sheet1!C11 -> 9 | E11: =D11+D10/60 -> 9.666666667 | F11: =(E11*-1+9)*30 -> -20 | G11: -0.3490658504 | H11: 0.9396926208 | I11: -0.3420201433 | J11: 21.61293028 | K11: -7.866463296
A12: ⑥ | B12: 分針 | C12: 31 | D12: =Sheet1!E13 -> 30 | F12: =(D12*-1+45)*6 -> 90 | G12: 1.570796327 | H12: 6.125742275e-17 | I12: 1 | J12: 1.898980105e-15 | K12: 31
B13: 時針 | C13: 23 | D13: =Sheet1!C13 -> 12 | E13: =D13+D12/60 -> 12.5 | F13: =(E13*-1+9)*30 -> -105 | G13: -1.832595715 | H13: -0.2588190451 | I13: -0.9659258263 | J13: -5.952838037 | K13: -22.216294
